Cogmind - Beta 13 @@@ ROGUE MODE // 2024.06.11 @ 14:10:00 Player: Kinga Result: Destroyed by S-10 Pest with Light Assault Rifle Performance ------------- Evolutions (0) 0 Regions Visited (2) 400 Robots Destroyed (12) 60 Value Destroyed (382) 382 Prototype IDs (0) 0 Alien Tech Used (0) 0 Bonus (0) 0 TOTAL SCORE: 842 Bonus ------- None Cogmind --------- Core Integrity 0/250 Matter 234/300 Energy 125/125 System Corruption 0% Temperature Cool (0) Movement Rolling (120) Ox1 Location -10/Subcaves Parts ------- > --- POWER (1) -------- Light Ion Engine > --- PROPULSION (2) --- Subdweller Monowheel Subdweller Monowheel > --- UTILITY (2) ------ Large Storage Unit Targeting Computer > --- WEAPON (2) ------- Light Assault Rifle Barrage Gun > --- INVENTORY (15) --- Small Storage Unit Makeshift Kinetic Plating Scrap Shield Assault Rifle Assault Rifle Battle Rifle Subdweller Machine Gun Subdweller Shrapnel Launcher Hammer Makeshift Axe Makeshift Spear Scrap Shield Fragment (49) Scrap Shield Fragment (49) Peak State ------------ > --- POWER ------------ Light Ion Engine > --- PROPULSION ------- Subdweller Monowheel Subdweller Monowheel > --- UTILITY ---------- Large Storage Unit Targeting Computer > --- WEAPON ----------- Light Assault Rifle Makeshift Spear > --- INVENTORY -------- Small Storage Unit Makeshift Kinetic Plating Scrap Shield Riot Gun Assault Rifle Assault Rifle Battle Rifle Subdweller Machine Gun Barrage Gun Subdweller Shrapnel Launcher Hammer Makeshift Axe Scrap Shield Fragment Scrap Shield Fragment [Rating: 15] Favorites ----------- Power Ion Engine Engine Ion Engine Propulsion Light Treads Treads Light Treads Wheel Wheel Utility Large Storage Unit Device Structural Scanner Storage Large Storage Unit Processor Targeting Computer Weapon Light Assault Rifle Energy Gun Small Laser Ballistic Gun Light Assault Rifle Piercing Weapon Makeshift Spear Build | -11 -10 -10 ------- Run | Yrd Mat Sub Slots Evolved . | . . . Power . | . . . Propulsion . | . . . Utility . | . . . Weapon . | . . . Parts Attached 30 | 7 2 21 Power 4 | 2 . 2 Engine 4 | 2 . 2 Core . | . . . Reactor . | . . . Propulsion 10 | 2 . 8 Treads 3 | . . 3 Leg . | . . . Wheel 7 | 2 . 5 Hover . | . . . Flight . | . . . Utility 4 | 1 2 1 Device 1 | . 1 . Storage 2 | 1 1 . Processor 1 | . . 1 Hackware . | . . . Protection . | . . . Artifact . | . . . Weapon 12 | 2 . 10 Energy Gun 5 | 2 . 3 Energy Cannon . | . . . Ballistic Gun 6 | . . 6 Ballistic Cannon . | . . . Launcher . | . . . Special Weapon . | . . . Impact Weapon . | . . . Slashing Weapon . | . . . Piercing Weapon 1 | . . 1 Special Melee Weapon . | . . . Unidentified Prototypes . | . . . Parts Lost 11 | . . 11 Power 2 | . . 2 Propulsion 5 | . . 5 Utility 1 | . . 1 Weapon 3 | . . 3 Highest Loss Streak 5 | . . 5 To Critical Strikes . | . . . Average Slot Usage (%) 97 | . 99 96 Engine 13 | . 14 13 Treads 11 | . . 15 Wheel 13 | . 28 9 Device 3 | . 13 . Storage 14 | . 14 14 Processor 10 | . . 13 Energy Gun 10 | . 28 5 Ballistic Gun 12 | . . 15 Piercing Weapon 4 | . . 6 Naked Turns . | . . . Heaviest Build 32 | 13 29 32 Greatest Support 40 | 20 20 40 Greatest Overweight (x) 8 | . 1 8 Average Overweight (x) . | . . . Largest Inventory Capacity 15 | 8 15 15 Average Capacity 14 | 6 14 15 Most Carried 15 | 4 12 15 Average Carried 12 | 1 10 14 Final Capacity 15 | 8 15 15 Final Carried 14 | 4 12 14 Class Distribution -------------------- 100% | Mutant Dominant Class ---------------- Mutant | -10/Materials Mutant | -10/Subcaves Resources | -11 -10 -10 ----------- Run | Yrd Mat Sub Matter Collected 475 | 244 46 185 Remotely . | . . . Salvage Created 487 | . 110 377 Parts 35 | . 10 25 Haulers Intercepted 1 | . 1 . Recyclers Shooed . | . . . Parts Field Recycled . | . . . Retrieved Matter . | . . . Parts Self-Destructed 5 | . . 5 Prevented . | . . . Kills | -11 -10 -10 ------- Run | Yrd Mat Sub Combat Hostiles Destroyed 10 | . 1 9 Melee 4 | . . 4 Guns 6 | . 1 5 Classes Destroyed 5 | . 3 2 Hauler 1 | . 1 . Watcher 1 | . 1 . Swarmer 1 | . . 1 Grunt 1 | . 1 . Subdweller 8 | . . 8 Best Kill Streak 2 | . 1 2 Combat Bots Only 2 | . 1 2 Max Kills in Single Turn 1 | . 1 1 Gunslinging . | . . . Exploded . | . . . Melee 1 | . . 1 Uniques/NPCs Destroyed . | . . . Combat | -11 -10 -10 -------- Run | Yrd Mat Sub Hostile Shots Fired 98 | . 9 89 Missed 16 | . 2 14 Damage Taken 1545 | . 77 1468 Core 250 | . 10 240 Absorbed by Shields . | . . . Core Remaining (%) 100 | 100 . . Volleys Fired 47 | . 18 29 Largest 2 | . 2 2 Hottest 100 | . 90 100 Shots Fired 92 | . 36 56 Gun 92 | . 36 56 Cannon . | . . . Launcher . | . . . Special . | . . . Kinetic 31 | . . 31 Thermal 54 | . 36 18 Explosive . | . . . Electromagnetic 7 | . . 7 Robot Hit Streak 16 | . 7 16 Robot Miss Streak 4 | . 3 4 Penetration Max . | . . . Secondary Targets 1 | . 1 . Max Gunslinging Chain 1 | . 1 . Shots Hit Robots 72 | . 23 49 Core Hits 23 | . 6 17 Critical Kills . | . . . Critical Parts Destroyed . | . . . Critical Strikes 4 | . 2 2 Burn 2 | . 2 . Impale 2 | . . 2 Melee Attacks 47 | . . 47 Impact . | . . . Slashing . | . . . Piercing 47 | . . 47 Sneak Attacks . | . . . Combat Hostiles . | . . . Follow-up Attacks . | . . . Damage Inflicted 1144 | . 265 879 Guns 691 | . 265 426 Cannons . | . . . Explosions . | . . . Melee 453 | . . 453 Ramming . | . . . Kinetic 200 | . . 200 Thermal 442 | . 265 177 Explosive . | . . . Electromagnetic 49 | . . 49 Impact . | . . . Slashing . | . . . Piercing 453 | . . 453 Highest Corruption . | . . . Average Corruption . | . . . Corruption Purged . | . . . Corruption Blocked . | . . . Overload Shots . | . . . Overflow Damage . | . . . Projectiles . | . . . Explosions . | . . . Melee . | . . . Knockbacks . | . . . Impact . | . . . Kinetic . | . . . Secondary . | . . . Self-Inflicted Damage . | . . . Shots . | . . . Rammed . | . . . Targets Rammed . | . . . Kicked . | . . . Crushed . | . . . Highest Temperature 292 | . 292 . Average Temperature 108 | . 108 . Received Heat Transfer 294 | . 42 252 Siege Activations . | . . . Robots Corrupted . | . . . Combat Hostiles . | . . . Parts Fried . | . . . Impact Corruptions . | . . . Robots Melted . | . . . Combat Hostiles . | . . . Parts Melted 1 | . . 1 Heat Transferred 1315 | . 855 460 Parts Sabotaged . | . . . Parts Stolen . | . . . Parts Stripped . | . . . Power Chain Reactions . | . . . Alert | -11 -10 -10 ------- Run | Yrd Mat Sub Peak Influence 74 | . 74 . Initial . | . . . Average 42 | . 47 . Maximum Alert Level . | . . . Low Security (%) 100 | 100 100 . Level 1 . | . . . Level 2 . | . . . Level 3 . | . . . Level 4 . | . . . Level 5 . | . . . High Security . | . . . Max Security . | . . . Squads Dispatched 1 | . 1 . Investigation . | . . . Extermination . | . . . Reinforcement 1 | . 1 . Assault . | . . . Garrison . | . . . Intercept . | . . . Searches Triggered . | . . . Construction Impeded . | . . . Haulers Reinforced . | . . . Active Scanning Responses . | . . . Cargo Convoy Interrupts . | . . . Stealth | -11 -10 -10 --------- Run | Yrd Mat Sub Distress Signals 1 | . 1 . Communications Jammed . | . . . Distress Signals . | . . . Times Spotted 18 | . 5 13 Peak Tracking Total 5 | . 2 5 Tactical Retreats 2 | . 1 1 Traps | -11 -10 -10 ------- Run | Yrd Mat Sub Traps Triggered . | . . . Indirectly . | . . . Trap Hack Attempts . | . . . Triggered . | . . . Disarmed . | . . . Reprogrammed . | . . . Reused . | . . . Traps Extracted . | . . . Installed . | . . . Triggered . | . . . Machines | -11 -10 -10 ---------- Run | Yrd Mat Sub Machines Disabled . | . . . Max in Single Turn . | . . . Machines Repaired . | . . . Machines Dismantled . | . . . Machines Sabotaged . | . . . Overloaded Fab Kills . | . . . Hacking | -11 -10 -10 --------- Run | Yrd Mat Sub Machines Accessed . | . . . Terminals . | . . . Fabricators . | . . . Repair Stations . | . . . Recycling Units . | . . . Scanalyzers . | . . . Garrison Access . | . . . Total Hacks . | . . . Successful . | . . . Failed . | . . . Catastrophic . | . . . Database Lockouts . | . . . Manual . | . . . Terminals . | . . . Fabricators . | . . . Repair Stations . | . . . Recycling Units . | . . . Scanalyzers . | . . . Garrison Access . | . . . Terminal Hacks . | . . . Fabricator Hacks . | . . . Repair Station Hacks . | . . . Recycling Unit Hacks . | . . . Scanalyzer . | . . . Garrison Access Hacks . | . . . Unauthorized Hacks . | . . . Terminals . | . . . Fabricators . | . . . Repair Stations . | . . . Recycling Units . | . . . Scanalyzers . | . . . Garrison Access . | . . . Data Cores Recovered . | . . . Used . | . . . Hacking Detections . | . . . Full Trace Events . | . . . Feedback Events . | . . . Feedback Blocked . | . . . Robot Schematics Acquired . | . . . Robots Built . | . . . Authchips . | . . . Time . | . . . Total Robot Build Rating . | . . . Part Schematics Acquired . | . . . Parts Built . | . . . Authchips . | . . . Time . | . . . Total Part Build Rating . | . . . Parts Repaired . | . . . Time . | . . . Parts Recycled . | . . . Recycled Matter . | . . . Retrieved Matter . | . . . Retrieved Components . | . . . Parts Scanalyzed . | . . . Part Schematics Acquired . | . . . Parts Damaged . | . . . Bothacking | -11 -10 -10 ------------ Run | Yrd Mat Sub Used RIF Installer . | . . . Robots Hacked . | . . . Non-combat . | . . . Combat . | . . . Robot Hacks Applied . | . . . Relay Couplers Released . | . . . Fabnet Peak Effective % . | . . . Robots Rewired . | . . . Allies Hacked . | . . . Hacks Repelled . | . . . Allies | -11 -10 -10 -------- Run | Yrd Mat Sub Total Allies . | . . . Largest Group . | . . . Highest-Rated Group . | . . . Highest-Rated Ally . | . . . Total Orders . | . . . Ally Attacks . | . . . Total Damage . | . . . Kills . | . . . Allies Corrupted . | . . . Allies Melted . | . . . Intel | -11 -10 -10 ------- Run | Yrd Mat Sub Robot Analysis Total . | . . . Derelict Logs Recovered 1 | . . 1 Drone Launches . | . . . Drone Recoveries . | . . . Exploration | -11 -10 -10 ------------- Run | Yrd Mat Sub Turns Passed 2171 | 46 481 1644 Spaces Moved 1111 | 41 98 972 Core 27 | 1 . 26 Treads 503 | . . 503 Legs . | . . . Wheels 581 | 40 98 443 Hover . | . . . Flight . | . . . Fastest Speed 50 | 50 80 95 Average Speed 137 | 79 89 145 Slowest Speed 450 | 80 95 450 Overloaded Moves . | . . . Propulsion Burnouts . | . . . Robots Hopped . | . . . Cave-ins Triggered . | . . . Exploration Rate (%) 26 | 3 13 63 Regions Visited 2 Branch Regions 1 Pre-discovered Areas 1 | . . 1 Known Exits Taken . | . . . Unknown Exits Taken 2 | 1 1 . Scrap Searched 15 | . . 15 Spaces Dug . | . . . Terrain Destroyed . | . . . Melee . | . . . Projectile . | . . . AOE . | . . . Terrain Rammed . | . . . Walls Destroyed . | . . . Machines Disabled . | . . . Actions | -11 -10 -10 --------- Run | Yrd Mat Sub Total 1604 | 50 453 1101 Wait 341 | . 329 12 Move 1109 | 40 97 972 Hop . | . . . Pick Up 23 | 3 7 13 Fast Attach 11 | 6 1 4 Attach 10 | . . 10 Detach . | . . . Swap 9 | 1 1 7 Drop 7 | . . 7 Fire 47 | . 18 29 Melee 47 | . . 47 Ram . | . . . Kick . | . . . Crush . | . . . Escape Stasis . | . . . Rewire . | . . . Trap . | . . . Miscellaneous . | . . . Route ------- -11/Scrapyard -10/Materials -10/Subcaves (discovered 2 exits: [*Mat x2]) History --------- Turn | Location | Event 17 | -11/Scrapyard | Discovered new exit (range 16) 47 | -11/Scrapyard | Entered Materials 81 | -10/Materials | Discovered new exit (range 15) 316 | -10/Materials | Build established: Mutant 528 | -10/Materials | Entered Subcaves 628 | -10/Subcaves | Lost 5 parts (1p2n1u1w) 1098 | -10/Subcaves | Discovered new exit (range 10) 1181 | -10/Subcaves | A swath of the cavern ceiling suddenly collapsed 1314 | -10/Subcaves | Discovered new exit (range 9) 1479 | -10/Subcaves | Core integrity fell below 50% 1582 | -10/Subcaves | Shifting Twisted Machinery released Sub. Shrapnel Launcher 1582 | -10/Subcaves | Shifting Twisted Machinery released Sub. Machine Gun 1612 | -10/Subcaves | Learned location of Mines (-9) 1657 | -10/Subcaves | Disturbed a concealed Subdweller 1726 | -10/Subcaves | Core integrity fell below 20% 1815 | -10/Subcaves | Shifting Twisted Machinery released Sub. Power Source 1816 | -10/Subcaves | Shifting Twisted Machinery released Scrap Shield 1833 | -10/Subcaves | Shifting Twisted Machinery released Barrage Gun 2172 | -10/Subcaves | Destroyed by S-10 Pest with Light Assault Rifle Last Messages --------------- 01744_ Searching scrap... 01744_ Found Flamer. 01744_ Found Shrapnel Trap. 01744_ Found 35 Matter. Sub. Power Source falls loose from the Twisted Machinery. Scrap Shield falls loose from the Twisted Machinery. 01822_ Sub. Monowheel shoots sparks and powers down. 01825_ Dropped Broken Sub. Monowheel. Barrage Gun falls loose from the Twisted Machinery. 01844_ Acquired Barrage Gun. 01889_ Sub. Monowheel shoots sparks and powers down. 01890_ Dropped Broken Sub. Monowheel. 02007_ Acquired Sub. Monowheel. 02134_ Sub. Monowheel shoots sparks and powers down. 02154_ Riot Gun destroyed. 02157_ S-10 Pest destroyed. 02161_ Flight Unit fries itself beyond repair. 02162_ Lgt. Assault Rifle fries itself beyond repair. 02168_ Flight Unit fries itself beyond repair. 02170_ Lgt. Assault Rifle fries itself beyond repair. Map ----- +----------------------------------------------------+ | ?????????????????????????????????????????????????? | | ?????????????????????????????????????????????????? | | ?????????????????????????????????????????????????? | | ?????????????????????????????????????????????????? | | ?????????????????????????????????????????????????? | | ?????????????????????????????????????????????????? | | ?????????????????????????????????????????????????? | | ?????????????????????????????????????????????????? | | ?????????????????????????????????????????????????? | | ?????????????????????????????????????????????????? | | ?????????????????????????????????????????????????? | | ?????????????????????????????????????????????????? | | ?????????????????????????????????????????????????? | | ?????????????????????????????????????????????????? | | ?????????????????????????????????????????????????? | | ?????????????????????????????????????????????????? | | ?????????????????????????????????????????????????? | | ?????????????????????????????????????????????????? | | ????????????????????????###??????????????????????? | | ??????????????????????### #??????????????????????? | | ???????????????????#### ###????????????????????? | | ??????????????????## ##???????????????????? | | #????????????????## #???????????????????? | | ##??????????????## #???????????????????? | | #?????????????## ##???????????????????? | | ##???????????## @ ##???????????????????? | | ##??#####??## ## #???????????????? | | #### ### ### & #???????????????? | | # # #?#?? # #### %! % #???????????????? | | #????# # #### % % ????????????? | | #????# # ### s ????????? | | ### ## ##???# # # #### ""???????? | | #?##### #???# # ###### #?? # ????????? | | ??????## ##### ## ## #??# ##? ????????? | | ???????# ### ##???# #??? ""????????? | | ???????#### #?# ##????? #??????????????? | | ?????????## #### ##?????? #??????????????? | | ?????????# ##?# #??????? #??????????????? | | ?????????# #??# #??????? #??????????????? | | ?????????####### #??# ##???????? ??????????????? | | ???????????????# ##?## #????????? ??????????????? | | ???????????????# #?## #????????????????????????? | | ???????????????# ##?# #????????????????????????? | | ??????????####?# #### ##????????????????????????? | | ??????????# ### # # #?????????????????????????? | | ??????????# #?????????????????????????? | | ?????????## #?????????????????????????? | | ?????????# ## #### # #?????????????????????????? | | ?????????# #####??#####?????????????????????????? | | ####?????#" ###?????????????????????????????????? | +----------------------------------------------------+ Best States ------------- Heat Dissipation 25 Energy Generation 10 Energy Capacity 250 Matter Stores 300 Matter Capacity 300 Sight Range 16 Terrain Scan Density 10 Evasion (%) 44 Targeting Accuracy 5 Recoil Reduction 2 Item Schematics ----------------- None Robot Schematics ------------------ None Fabricated ------------ Nothing Alien Tech Used ----------------- None Achievements -------------- None Challenges ------------ None Game ------ Seed ScanBottomlessThrower Manual? 0 Play Time 00:14:24 Cumulative 53.0 hours Start 2024.06.11 @ 13:58:36 End 2024.06.11 @ 14:10:00 Sessions 1 Manual Loads 0 Difficulty Rogue Special Mode None Game No. 69 Rogue 67 Adventurer 0 Explorer 2 Win Type - Total 3 Types 2/0/0/1/0/0/0/0/0 Lore% 30 Gallery% 55 Achievement% 46 Wizard Run 0 Options --------- Layout 0 ASCII 0 Keyboard 0 Movement Numpad Keybinds 0 Fullscreen 2 Font 18/SmallcapsGlow Map View 76x50 Zoom Use 0% Tactical HUD 1 Map Filters NONE Filters NONE Steam 1 RUN: c8af5a3f-0354-4113-85a9-d03ec0d79c60